fUSD/lending_fUSD_20251011
["ID","MTS","AMOUNT","RATE_DAILY","PERIOD"]
[390886386,1760194259486,-1233.0,0.000161,2]
[390886387,1760194259495,-1233.0,0.000161,2]
[390886388,1760194259504,-1233.0,0.000161,2]
[390886389,1760194259513,-151.0,0.000161,2]
[390886390,1760194259524,-151.0,0.000161,2]
[390886391,1760194259534,-151.0,0.000161,2]
[390886392,1760194259543,-151.0,0.000161,2]
[390886393,1760194259551,-693.4821,0.000161,2]
[390886394,1760194259561,-1781.0275,0.000161,2]
[390886395,1760194259571,-301.79,0.00016113,2]
[390886396,1760194259585,-1104.0,0.0001615,2]
[390886397,1760194259593,-805.0,0.0001615,2]
[390886398,1760194259602,-447.0,0.0001615,2]
[390886399,1760194259612,-2048.0,0.0001615,2]
[390886400,1760194259623,-740.0,0.0001615,2]
[390886401,1760194259633,-1266.0,0.0001615,2]
[390886402,1760194259642,-3405.0,0.0001615,2]
[390886403,1760194259653,-1587.0,0.0001615,2]
[390886404,1760194259665,-588.532,0.0001615,2]
[390886405,1760194259674,-626.783,0.0001615,2]
[390886406,1760194259684,-822.0,0.0001615,2]
[390886407,1760194259693,-6439.0,0.0001615,2]
[390886408,1760194259702,-4120.0,0.0001615,2]
[390886409,1760194259711,-622.0,0.0001615,2]
[390886410,1760194259720,-1104.0,0.00016204,2]
[390886411,1760194259730,-805.0,0.00016204,2]
[390886412,1760194259739,-447.0,0.00016204,2]
[390886413,1760194259748,-150.0,0.0001624,2]
[390886414,1760194259758,-1105.01343901,0.00016259,2]
[390886415,1760194259767,-825.0,0.00016259,2]
[390886416,1760194259776,-455.90669013,0.00016259,2]
[390886417,1760194259786,-949.46,0.00016261,2]
[390886418,1760194259795,-161.66668498,0.00016282,2]
[390886419,1760194259804,-166.07073333,0.000163,2]
[390886420,1760194259815,-500.0,0.0001637,2]
[390886421,1760194259825,-500.0,0.00016438,2]
[390886422,1760194259834,-500.0,0.00016438,2]
[390886423,1760194259843,-500.0,0.00016438,2]
[390886424,1760194259852,-500.0,0.00016438,2]
[390886425,1760194259862,-500.0,0.00016438,2]
[390886426,1760194259872,-500.0,0.00016438,2]
[390886427,1760194259881,-500.0,0.00016438,2]
[390886428,1760194259891,-500.0,0.00016438,2]
[390886429,1760194259901,-500.0,0.00016438,2]
[390886430,1760194259911,-500.0,0.00016438,2]
[390886431,1760194259920,-500.0,0.00016438,2]
[390886432,1760194259930,-500.0,0.00016438,2]
[390886433,1760194259940,-500.0,0.00016438,2]
[390886434,1760194259949,-788.0,0.00016438,2]
[390886435,1760194259959,-500.0,0.00016438,2]
[390886436,1760194259968,-500.0,0.00016438,2]
[390886437,1760194259977,-500.0,0.00016438,2]
[390886438,1760194259990,-500.0,0.00016438,2]
[390886439,1760194259999,-500.0,0.00016438,2]
[390886440,1760194260008,-500.0,0.00016438,2]
[390886441,1760194260017,-500.0,0.00016438,2]
[390886442,1760194260026,-500.0,0.00016438,2]
[390886443,1760194260035,-500.0,0.00016438,2]
[390886444,1760194260044,-500.0,0.00016438,2]
[390886445,1760194260053,-500.0,0.00016438,2]
[390886446,1760194260063,-500.0,0.00016438,2]
[390886447,1760194260072,-500.0,0.00016438,2]
[390886448,1760194260081,-500.0,0.00016438,2]
[390886449,1760194260091,-500.0,0.00016438,2]
[390886450,1760194260101,-500.0,0.00016438,2]
[390886451,1760194260110,-500.0,0.00016438,2]
[390886452,1760194260119,-500.0,0.00016438,2]
[390886453,1760194260129,-500.0,0.00016438,2]
[390886454,1760194260137,-500.0,0.00016438,2]
[390886455,1760194260147,-500.0,0.00016438,2]
[390886456,1760194260156,-500.0,0.00016438,2]
[390886457,1760194260165,-500.0,0.00016438,2]
[390886458,1760194260174,-500.0,0.00016438,2]
[390886459,1760194260183,-500.0,0.00016438,2]
[390886460,1760194260192,-500.0,0.00016438,2]
[390886461,1760194260200,-500.0,0.00016438,2]
[390886462,1760194260206,-500.0,0.00016438,2]
[390886463,1760194260214,-500.0,0.00016438,2]
[390886464,1760194260221,-500.0,0.00016438,2]
[390886465,1760194260227,-500.0,0.00016438,2]
[390886466,1760194260234,-500.0,0.00016438,2]
[390886467,1760194260241,-500.0,0.00016438,2]
[390886468,1760194260247,-500.0,0.00016438,2]
[390886469,1760194260254,-500.0,0.00016438,2]
[390886470,1760194260261,-960.0,0.00016438,2]
[390886471,1760194260267,-500.0,0.00016438,2]
[390886472,1760194260274,-500.0,0.00016438,2]
[390886473,1760194260281,-500.0,0.00016438,2]
[390886474,1760194260287,-500.0,0.00016438,2]
[390886475,1760194260294,-500.0,0.00016438,2]
[390886476,1760194260300,-500.0,0.00016438,2]
[390886477,1760194260306,-500.0,0.00016438,2]
[390886478,1760194260315,-10000.0,0.00016438,2]
[390886479,1760194260322,-500.0,0.00016438,2]
[390886480,1760194260329,-500.0,0.00016438,2]
[390886481,1760194260336,-500.0,0.00016438,2]
[390886482,1760194260342,-500.0,0.00016438,2]
[390886483,1760194260348,-500.0,0.00016438,2]
[390886484,1760194260355,-500.0,0.00016438,2]
[390886485,1760194260364,-779.0,0.00016438,2]
[390886486,1760194260373,-500.0,0.00016438,2]
[390886487,1760194260382,-500.0,0.00016438,2]
[390886488,1760194260391,-169.4,0.00016438,2]
[390886489,1760194260400,-500.0,0.00016438,2]
[390886490,1760194260409,-500.0,0.00016438,2]
[390886491,1760194260419,-500.0,0.00016438,2]
[390886492,1760194260428,-571.0,0.00016438,2]
[390886493,1760194260436,-500.0,0.00016438,2]
[390886494,1760194260445,-500.0,0.00016438,2]
[390886495,1760194260454,-500.0,0.00016438,2]
[390886496,1760194260463,-500.0,0.00016438,2]
[390886497,1760194260472,-500.0,0.00016438,2]
[390886498,1760194260481,-500.0,0.00016438,2]
[390886499,1760194260490,-500.0,0.00016438,2]
[390886500,1760194260499,-500.0,0.00016438,2]
[390886501,1760194260508,-500.0,0.00016438,2]
[390886502,1760194260517,-500.0,0.00016438,2]
[390886503,1760194260526,-500.0,0.00016438,2]
[390886504,1760194260535,-500.0,0.00016438,2]
[390886505,1760194260544,-500.0,0.00016438,2]
[390886506,1760194260554,-500.0,0.00016438,2]
[390886507,1760194260564,-500.0,0.00016438,2]
[390886508,1760194260573,-500.0,0.00016438,2]
[390886509,1760194260586,-500.0,0.00016438,2]
[390886510,1760194260596,-500.0,0.00016438,2]
[390886511,1760194260605,-500.0,0.00016438,2]
[390886512,1760194260616,-500.0,0.00016438,2]
[390886513,1760194260625,-500.0,0.00016438,2]
[390886514,1760194260634,-500.0,0.00016438,2]
[390886515,1760194260644,-263.357394,0.00016438,2]
[390886516,1760194260655,-263.357394,0.00016438,2]
[390886517,1760194260665,-263.357394,0.00016438,2]
[390886518,1760194260674,-263.357394,0.00016438,2]
[390886519,1760194260684,-263.357394,0.00016438,2]
[390886520,1760194260693,-263.357394,0.00016438,2]
[390886521,1760194260703,-263.357394,0.00016438,2]
[390886522,1760194260715,-263.357394,0.00016438,2]
[390886523,1760194260723,-263.357394,0.00016438,2]
[390886524,1760194260732,-263.357394,0.00016438,2]
[390886525,1760194260742,-263.357394,0.00016438,2]
[390886526,1760194260752,-263.357394,0.00016438,2]
[390886527,1760194260761,-263.357394,0.00016438,2]
[390886528,1760194260771,-263.357394,0.00016438,2]
[390886529,1760194260781,-263.357394,0.00016438,2]
[390886530,1760194260791,-263.357394,0.00016438,2]
[390886531,1760194260801,-263.357394,0.00016438,2]
[390886532,1760194260811,-263.357394,0.00016438,2]
[390886533,1760194260822,-263.357394,0.00016438,2]
[390886534,1760194260832,-263.357398,0.00016438,2]
[390886535,1760194260842,-1000.0,0.00016438,2]
[390886536,1760194260852,-300.0,0.00016438,2]
[390886537,1760194260862,-300.0,0.00016438,2]
[390886538,1760194260872,-300.0,0.00016438,2]
[390886539,1760194260882,-300.0,0.00016438,2]
[390886540,1760194260892,-300.0,0.00016438,2]
[390886541,1760194260903,-300.0,0.00016438,2]
[390886542,1760194260912,-300.0,0.00016438,2]
[390886543,1760194260922,-300.0,0.00016438,2]
[390886544,1760194260931,-300.0,0.00016438,2]
[390886545,1760194260941,-300.0,0.00016438,2]
[390886546,1760194260951,-300.0,0.00016438,2]
[390886547,1760194260960,-300.0,0.00016438,2]
[390886548,1760194260970,-300.0,0.00016438,2]
[390886549,1760194260980,-300.0,0.00016438,2]
[390886550,1760194260990,-300.0,0.00016438,2]
[390886551,1760194261000,-300.0,0.00016438,2]
[390886552,1760194261009,-300.0,0.00016438,2]
[390886553,1760194261019,-300.0,0.00016438,2]
[390886554,1760194261029,-300.0,0.00016438,2]
[390886555,1760194261038,-300.0,0.00016438,2]
[390886556,1760194261048,-340.138691,0.00016438,2]
[390886557,1760194261058,-218.08138793,0.00016438,2]
[390886558,1760194261069,-360.27632908,0.00016443,5]
[390886559,1760194261079,-475.23572958,0.00016468,2]
[390886560,1760194261089,-23589.8557421,0.0001648,2]
[390886561,1760194261099,-500.0,0.00016493,2]
[390886562,1760194261108,-890.0519818,0.00016493,2]
[390886563,1760194261117,-5139.1201667,0.00016493,2]
[390886564,1760194261127,-2971.985947,0.00016493,2]
[390886565,1760194261137,-2591.3215156,0.00016495,2]
[390886566,1760194261146,-193.70707927,0.000165,2]
[390886567,1760194261156,-394.70504097,0.000165,2]
[390886568,1760194261166,-500.0,0.00016548,2]
[390886569,1760194261175,-500.0,0.00016602,2]
[390886570,1760194261185,-166.66,0.00016604,2]
[390886571,1760194261195,-2000.0,0.00016616,2]
[390886572,1760194261205,-500.0,0.00016644,2]
[390886573,1760194261215,-500.0,0.00016657,2]
[390886574,1760194261225,-193.70707927,0.000167,2]
[390886575,1760194261235,-394.70504097,0.000167,2]
[390886576,1760194261244,-500.0,0.00016712,2]
[390886577,1760194261254,-169.4,0.00016712,2]
[390886578,1760194261264,-180.06,0.00016737,2]
[390886579,1760194261273,-1910.843,0.00016737,2]
[390886580,1760194261283,-500.0,0.00016737,2]
[390886581,1760194261292,-500.0,0.00016737,2]
[390886582,1760194261301,-500.0,0.00016737,2]
[390886583,1760194261310,-500.0,0.00016737,2]
[390886584,1760194261321,-500.0,0.00016737,2]
[390886585,1760194261330,-500.0,0.00016737,2]
[390886586,1760194261339,-500.0,0.00016737,2]
[390886587,1760194261349,-500.0,0.00016737,2]
[390886588,1760194261359,-500.0,0.00016737,2]
[390886589,1760194261367,-500.0,0.00016737,2]
[390886590,1760194261377,-500.0,0.00016737,2]
[390886591,1760194261387,-500.0,0.00016737,2]
[390886592,1760194261396,-500.0,0.00016737,2]
[390886593,1760194261405,-500.0,0.00016737,2]
[390886594,1760194261414,-500.0,0.00016737,2]
[390886595,1760194261424,-500.0,0.00016737,2]
[390886596,1760194261433,-500.0,0.00016737,2]
[390886597,1760194261444,-500.0,0.00016737,2]
[390886598,1760194261453,-500.0,0.00016737,2]
[390886599,1760194261463,-500.0,0.00016737,2]
[390886600,1760194261472,-500.0,0.00016737,2]
[390886601,1760194261481,-500.0,0.00016737,2]
[390886602,1760194261491,-500.0,0.00016737,2]
[390886603,1760194261501,-500.0,0.00016737,2]
[390886604,1760194261510,-500.0,0.00016737,2]
[390886605,1760194261520,-500.0,0.00016737,2]
[390886606,1760194261530,-500.0,0.00016737,2]
[390886607,1760194261539,-500.0,0.00016737,2]
[390886608,1760194261549,-500.0,0.00016737,2]
[390886609,1760194261559,-500.0,0.00016737,2]
[390886610,1760194261574,-500.0,0.00016737,2]
[390886611,1760194261583,-500.0,0.00016737,2]
[390886612,1760194261593,-500.0,0.00016737,2]
[390886613,1760194261602,-500.0,0.00016737,2]
[390886614,1760194261612,-500.0,0.00016737,2]
[390886615,1760194261623,-500.0,0.00016737,2]
[390886616,1760194261632,-500.0,0.00016737,2]
[390886617,1760194261641,-500.0,0.00016737,2]
[390886618,1760194261651,-500.0,0.00016737,2]
[390886619,1760194261660,-500.0,0.00016737,2]
[390886620,1760194261670,-500.0,0.00016737,2]
[390886621,1760194261679,-500.0,0.00016737,2]
[390886622,1760194261688,-500.0,0.00016737,2]
[390886623,1760194261698,-500.0,0.00016737,2]
[390886624,1760194261707,-500.0,0.00016737,2]
[390886625,1760194261717,-500.0,0.00016737,2]
[390886626,1760194261726,-500.0,0.00016737,2]
[390886627,1760194261736,-500.0,0.00016737,2]
[390886628,1760194261745,-500.0,0.00016737,2]
[390886629,1760194261755,-500.0,0.00016737,2]
[390886630,1760194261764,-500.0,0.00016737,2]
[390886631,1760194261774,-500.0,0.00016737,2]
[390886632,1760194261784,-500.0,0.00016737,2]
[390886633,1760194261793,-500.0,0.00016737,2]
[390886634,1760194261803,-500.0,0.00016737,2]
[390886635,1760194261813,-385.15,0.00016746,2]
[390886636,1760194261822,-500.0,0.00016767,2]
[390886637,1760194261832,-193.70707927,0.000168,2]
[390886638,1760194261842,-394.70504097,0.000168,2]
[390886639,1760194261851,-949.46,0.00016809,2]
[390886640,1760194261860,-150.0,0.00016822,2]
[390886641,1760194261870,-300.0,0.00016887,2]
[390886642,1760194261880,-198.5974412,0.00016908,2]
[390886643,1760194261889,-1146.6927058,0.00016908,2]
[390886644,1760194261899,-663.1397003,0.00016908,2]
[390886645,1760194261908,-578.2019847,0.0001691,2]
[390886646,1760194261918,-500.0,0.00016918,2]
[390886647,1760194261928,-240.62,0.00016936,2]
[390886648,1760194261937,-267.46074303,0.00016963,2]
[390886649,1760194261947,-169.4,0.00016986,2]
[390886650,1760194261957,-620.16,0.00017,7]
[390886651,1760194261966,-193.70707927,0.00017,2]
[390886652,1760194261975,-394.70504097,0.00017,2]
[390886653,1760194261985,-250.0,0.00017,2]
[390886654,1760194261995,-268.49,0.0001702,2]
[390886655,1760194262005,-949.46,0.00017083,2]
[390886656,1760194262016,-198.29151701,0.00017128,2]
[390886657,1760194262025,-2500.0,0.00017164,2]
[390886658,1760194262036,-500.0,0.00017192,2]
[390886659,1760194262045,-1000.0,0.00017199,2]
[390886660,1760194262055,-394.70504097,0.000172,2]
[390886661,1760194262066,-360.27632908,0.00017206,6]
[390886662,1760194262075,-2351.0,0.00017243,2]
[390886663,1760194262085,-169.4,0.0001726,2]
[390886664,1760194262095,-736.0,0.00017336,2]
[390886665,1760194262104,-949.46,0.00017357,2]
[390886666,1760194262114,-346.92554585,0.00017364,2]
[390886667,1760194262123,-670.58624095,0.00017365,2]
[390886668,1760194262133,-150.0,0.00017414,2]
[390886669,1760194262143,-150.0,0.00017414,2]
[390886670,1760194262376,-150.0,0.00017414,2]
[390886671,1760194262394,-808.31,0.00017426,2]
[390886672,1760194262404,-474.4,0.00017426,2]
[390886673,1760194262413,-808.31,0.00017426,2]
[390886674,1760194262422,-474.4,0.00017426,2]
[390886675,1760194262431,-808.31,0.00017426,2]
[390886676,1760194262440,-474.4,0.00017426,2]
[390886677,1760194262450,-757.86,0.00017426,2]
[390886678,1760194262459,-474.4,0.00017426,2]
[390886679,1760194262468,-474.4,0.00017426,2]
[390886680,1760194262478,-474.4,0.00017426,2]
[390886681,1760194262487,-474.4,0.00017426,2]
[390886682,1760194262496,-500.0,0.00017466,2]
[390886683,1760194262505,-160.64,0.00017508,2]
[390886684,1760194262515,-169.4,0.00017534,2]
[390886685,1760194262524,-1600.0,0.00017604,2]
[390886686,1760194262533,-949.46,0.00017631,2]
[390886687,1760194262543,-161.66668498,0.00017639,2]
[390886688,1760194262553,-166.07073333,0.000177,2]
[390886689,1760194262563,-3000.0,0.00017712,2]
[390886690,1760194262573,-717.26739895,0.0001773,2]
[390886691,1760194262586,-577.39,0.0001774,2]
[390886692,1760194262595,-10000.0,0.00017808,4]
[390886693,1760194262605,-169.4,0.00017808,2]
[390886694,1760194262615,-949.53989914,0.00017905,2]
[390886695,1760194262625,-1000.0,0.00017906,2]
[390886696,1760194262635,-360.27632908,0.00017969,7]
[390886697,1760194262644,-2000.0,0.00018,2]
[390886698,1760194262654,-34947.27837454,0.00018,2]
[390886699,1760194262664,-1151.82314757,0.00018,2]
[390886700,1760194262673,-195.2719805,0.00018,2]
[390886701,1760194262683,-170.22970495,0.00018,2]
[390886702,1760194262692,-10523.50953427,0.00018,2]
[390886703,1760194262701,-230.44858083,0.00018,2]
[390886704,1760194262710,-729.58458863,0.00018,2]
[390886705,1760194262720,-543.95259881,0.00018058,2]
[390886706,1760194262730,-169.4,0.00018082,2]
[390886707,1760194262739,-1000.0,0.00018082,2]
[390886708,1760194262749,-1757.19568659,0.000181,2]
[390886709,1760194262758,-169.6577633,0.00018124,5]
[390886710,1760194262768,-591.33236894,0.00018189,2]
[390886711,1760194262777,-500.0,0.00018189,2]
[390886712,1760194262786,-431.41289556,0.00018189,2]
[390886713,1760194262796,-500.86951014,0.00018189,2]
[390886714,1760194262805,-195.2719805,0.000182,2]
[390886715,1760194262817,-10523.50953427,0.000182,2]
[390886716,1760194262827,-1936.500267,0.00018247,2]
[390886717,1760194262837,-1936.500267,0.00018247,2]
[390886718,1760194262847,-1936.500267,0.00018247,2]
[390886719,1760194262856,-1936.500267,0.00018247,2]
[390886720,1760194262866,-1936.500267,0.00018247,2]
[390886721,1760194262875,-1936.500267,0.00018247,2]
[390886722,1760194262885,-1936.500267,0.00018247,2]
[390886723,1760194262894,-1936.500267,0.00018247,2]
[390886724,1760194262903,-1936.500267,0.00018247,2]
[390886725,1760194262913,-1936.500267,0.00018247,2]
[390886726,1760194262923,-1936.500267,0.00018247,2]
[390886727,1760194262932,-1936.500267,0.00018247,2]
[390886728,1760194262942,-1936.500267,0.00018247,2]
[390886729,1760194262952,-1936.500267,0.00018247,2]
[390886730,1760194262961,-1936.500267,0.00018247,2]
[390886731,1760194262971,-1936.500267,0.00018247,2]
[390886732,1760194262980,-1936.500267,0.00018247,2]
[390886733,1760194262989,-1936.500267,0.00018247,2]
[390886734,1760194262998,-1936.500267,0.00018247,2]
[390886735,1760194263008,-1936.50027649,0.00018247,2]
[390886736,1760194263018,-3500.0,0.0001826,2]
[390886737,1760194263028,-277.35679052,0.00018332,2]
[390886738,1760194263037,-169.4,0.00018356,2]
[390886739,1760194263049,-474.4,0.00018384,2]
[390886740,1760194263059,-10523.50953427,0.000184,2]
[390886741,1760194263070,-300.0,0.00018428,2]
[390886742,1760194263079,-300.0,0.00018428,2]
[390886743,1760194263089,-300.0,0.00018428,2]
[390886744,1760194263099,-300.0,0.00018428,2]
[390886745,1760194263109,-300.0,0.00018428,2]
[390886746,1760194263119,-310.893925,0.00018428,2]
[390886747,1760194263129,-150.0,0.00018429,2]
[390886748,1760194263139,-6190.46397218,0.00018429,2]
[390886749,1760194263149,-150.0,0.00018429,2]
[390886750,1760194263159,-589.78448211,0.00018429,2]
[390886751,1760194263168,-150.0,0.00018429,2]
[390886752,1760194263178,-6049.43986066,0.00018429,2]
[390886753,1760194263188,-150.0,0.00018429,2]
[390886754,1760194263198,-62822.57345272,0.00018429,2]
[390886755,1760194263208,-150.0,0.00018429,2]
[390886756,1760194263218,-8444.76561022,0.00018429,2]
[390886757,1760194263228,-1101.82500828,0.0001847,2]
[390886758,1760194263238,-1000.0,0.00018493,2]
[390886759,1760194263250,-300.0,0.00018499,2]
[390886760,1760194263261,-300.0,0.00018499,2]
[390886761,1760194263271,-300.0,0.00018499,2]
[390886762,1760194263281,-237170.04631861,0.000185,2]
[390886763,1760194263292,-10523.50953427,0.000185,2]
[390886764,1760194263302,-38185.4207402,0.000185,2]
[390886765,1760194263312,-169.4,0.0001863,2]
[390886766,1760194263323,-10523.50953427,0.000187,2]
[390886767,1760194263334,-360.27632908,0.00018732,9]
[390886768,1760194263344,-359.76179104,0.00018733,2]
[390886769,1760194263355,-1000.0,0.00018737,2]
[390886770,1760194263364,-457.0,0.00018759,2]
[390886771,1760194263374,-1000.0,0.0001876,2]
[390886772,1760194263383,-300.0,0.00018799,2]
[390886773,1760194263392,-300.0,0.00018799,2]
[390886774,1760194263402,-300.0,0.00018799,2]
[390886775,1760194263412,-75000.0,0.000188,2]
[390886776,1760194263427,-4000.0,0.00018808,2]
[390886777,1760194263437,-10523.50953427,0.000189,2]
[390886778,1760194263448,-300.0,0.00018903,2]
[390886779,1760194263458,-300.0,0.00018903,2]
[390886780,1760194263468,-300.0,0.00018903,2]
[390886781,1760194263477,-169.4,0.00018904,2]
[390886782,1760194263486,-414.0,0.00018904,2]
[390886783,1760194263495,-414.0,0.00018904,2]
[390886784,1760194263504,-414.0,0.00018904,2]
[390886785,1760194263513,-414.0,0.00018904,2]
[390886786,1760194263523,-414.0,0.00018904,2]
[390886787,1760194263532,-414.0,0.00018904,2]
[390886788,1760194263541,-414.0,0.00018904,2]
[390886789,1760194263551,-414.0,0.00018904,2]
[390886790,1760194263561,-414.0,0.00018904,2]
[390886791,1760194263574,-414.0,0.00018904,2]
[390886792,1760194263583,-414.0,0.00018904,2]
[390886793,1760194263593,-414.0,0.00018904,2]
[390886794,1760194263602,-414.0,0.00018904,2]
[390886795,1760194263613,-414.0,0.00018904,2]
[390886796,1760194263622,-414.0,0.00018904,2]
[390886797,1760194263631,-414.0,0.00018904,2]
[390886798,1760194263640,-414.0,0.00018904,2]
[390886799,1760194263651,-414.0,0.00018904,2]
[390886800,1760194263660,-414.0,0.00018904,2]
[390886801,1760194263670,-414.0,0.00018904,2]
[390886802,1760194263679,-414.0,0.00018904,2]
[390886803,1760194263689,-414.0,0.00018904,2]
[390886804,1760194263699,-414.0,0.00018904,2]
[390886805,1760194263709,-414.0,0.00018904,2]
[390886806,1760194263719,-414.0,0.00018904,2]
[390886807,1760194263729,-414.0,0.00018904,2]
[390886808,1760194263738,-414.0,0.00018904,2]
[390886809,1760194263748,-414.0,0.00018904,2]
[390886810,1760194263758,-414.0,0.00018904,2]
[390886811,1760194263767,-414.0,0.00018904,2]
[390886812,1760194263777,-414.0,0.00018904,2]
[390886813,1760194263786,-414.0,0.00018904,2]
[390886814,1760194263795,-414.0,0.00018904,2]
[390886815,1760194263805,-414.0,0.00018904,2]
[390886816,1760194263815,-414.0,0.00018904,2]
[390886817,1760194263825,-414.0,0.00018904,2]
[390886818,1760194263835,-414.0,0.00018904,2]
[390886819,1760194263844,-414.0,0.00018904,2]
[390886820,1760194263854,-414.0,0.00018904,2]
[390886821,1760194263863,-414.0,0.00018904,2]
[390886822,1760194263873,-414.0,0.00018904,2]
[390886823,1760194263883,-414.0,0.00018904,2]
[390886824,1760194263892,-414.0,0.00018904,2]
[390886825,1760194263902,-414.0,0.00018904,2]
[390886826,1760194263911,-414.0,0.00018904,2]
[390886827,1760194263921,-414.0,0.00018904,2]
[390886828,1760194263931,-414.0,0.00018904,2]
[390886829,1760194263940,-414.0,0.00018904,2]
[390886830,1760194263950,-414.0,0.00018904,2]
[390886831,1760194263960,-414.0,0.00018904,2]
[390886832,1760194263969,-414.0,0.00018904,2]
[390886833,1760194263979,-414.0,0.00018904,2]
[390886834,1760194263989,-414.0,0.00018904,2]
[390886835,1760194263998,-414.0,0.00018904,2]
[390886836,1760194264008,-414.0,0.00018904,2]
[390886837,1760194264017,-414.0,0.00018904,2]
[390886838,1760194264027,-414.0,0.00018904,2]
[390886839,1760194264036,-414.0,0.00018904,2]
[390886840,1760194264046,-414.0,0.00018904,2]
[390886841,1760194264055,-414.0,0.00018904,2]
[390886842,1760194264067,-414.0,0.00018904,2]
[390886843,1760194264077,-414.0,0.00018904,2]
[390886844,1760194264087,-414.0,0.00018904,2]
[390886845,1760194264097,-414.0,0.00018904,2]
[390886846,1760194264107,-414.0,0.00018904,2]
[390886847,1760194264116,-414.0,0.00018904,2]
[390886848,1760194264126,-414.0,0.00018904,2]
[390886849,1760194264136,-414.0,0.00018904,2]
[390886850,1760194264146,-414.0,0.00018904,2]
[390886851,1760194264156,-414.0,0.00018904,2]
[390886852,1760194264165,-414.0,0.00018904,2]
[390886853,1760194264175,-414.0,0.00018904,2]
[390886854,1760194264184,-414.0,0.00018904,2]
[390886855,1760194264193,-414.0,0.00018904,2]
[390886856,1760194264202,-414.0,0.00018904,2]
[390886857,1760194264212,-414.0,0.00018904,2]
[390886858,1760194264222,-414.0,0.00018904,2]
[390886859,1760194264233,-414.0,0.00018904,2]
[390886860,1760194264242,-414.0,0.00018904,2]
[390886861,1760194264252,-414.0,0.00018904,2]
[390886862,1760194264262,-414.0,0.00018904,2]
[390886863,1760194264272,-414.0,0.00018904,2]
[390886864,1760194264282,-414.0,0.00018904,2]
[390886865,1760194264291,-414.0,0.00018904,2]
[390886866,1760194264301,-414.0,0.00018904,2]
[390886867,1760194264310,-414.0,0.00018904,2]
[390886868,1760194264321,-414.0,0.00018904,2]
[390886869,1760194264331,-414.0,0.00018904,2]
[390886870,1760194264340,-414.0,0.00018904,2]
[390886871,1760194264350,-414.0,0.00018904,2]
[390886872,1760194264360,-414.0,0.00018904,2]
[390886873,1760194264371,-414.0,0.00018904,2]
[390886874,1760194264380,-414.0,0.00018904,2]
[390886875,1760194264391,-414.0,0.00018904,2]
[390886876,1760194264401,-414.0,0.00018904,2]
[390886877,1760194264411,-414.0,0.00018904,2]
[390886878,1760194264421,-414.0,0.00018904,2]
[390886879,1760194264431,-414.0,0.00018904,2]
[390886880,1760194264441,-427.0,0.00018904,2]
[390886881,1760194264451,-427.0,0.00018904,2]
[390886882,1760194264460,-427.0,0.00018904,2]
[390886883,1760194264470,-427.0,0.00018904,2]
[390886884,1760194264479,-427.0,0.00018904,2]
[390886885,1760194264489,-427.0,0.00018904,2]